[Event "GER-chW 2019"]
[Site "Magdeburg"]
[Date "2019.06.01"]
[Round "9.10"]
[White "Kopylov, Luba"]
[Black "Freter, Anke"]
[Result "1/2-1/2"]
[ECO "A45"]
[WhiteElo "2078"]
[BlackElo "1873"]
[Annotator "NA"]
[PlyCount "52"]
[EventDate "2019.05.26"]
[EventType "tourn"]
[EventCountry "GER"]
[SourceTitle "playchess.com"]
[Source "ChessBase"]
[SourceQuality "1"]
[TimeControl "40/5400+30:1800+30"]

1. d4 {[%emt 0:00:00]} Nf6 {[%emt 0:00:00]} 2. g3 {[%emt 0:00:00]} d5 {[%emt 0:00:00]} 3. c4 {[%emt 0:00:00]} c6 {[%emt 0:00:29]} 4. Bg2 {[%emt 0:00:18]} g6 {[%emt 0:00:19]} 5. Nc3 {[%emt 0:00:35]} Bg7 {[%emt 0:00:59]} 6. cxd5 {[%emt 0:01:39]} cxd5 {[%emt 0:00:20]} 7. Nf3 {[%emt 0:00:09]} O-O {[%emt 0:01:02]} 8. Ne5 {[%emt 0:02:18]} e6 {[%emt 0:02:10]} 9. O-O {[%emt 0:01:15]} Nc6 {[%emt 0:01:34]} 10. Bg5 {[%emt 0:03:36]} Qb6 {[%emt 0:03:04] D79: Fianchetto Grünfeld: Symmetrical Variation (6 0-0 c6 7 cxd5 cxd5)} (10... h6 11. Nxc6 bxc6 12. Bf4 Nd7 13. Qd2 Qb6 14. Rfd1 Ba6 15. Rac1 Rfd8 16. e4 Rac8 17. Na4 Qb5 18. Nc5 Nxc5 19. Rxc5 Qe2 20. Qc1 {1-0 (35) Yu,Y (2753)-Lu,S (2638) Danzhou 2017}) 11. Na4 {[%emt 0:04:59]} Qa5 {[%emt 0:04:31]} 12. Nxc6 {[%emt 0:00:44]} bxc6 {[%emt 0:00:07]} 13. Rc1 {[%emt 0:00:09]} Rb8 $146 {[%emt 0:09:41]} ({Predecessor:} 13... Ba6 14. Nc5 Rfc8 15. Re1 Rab8 16. Bxf6 Bxf6 17. Nd7 Rxb2 18. Nxf6+ {0-1 (30) Kubiak,L (1812)-Darowicki,M (1855) Poland 2013}) 14. Bf4 {[%emt 0:03:32]} Rb4 {[%emt 0:03:45]} 15. b3 {[%emt 0:00:57]} Rb5 {[%emt 0:04:17]} 16. Bd6 {[%emt 0:10:15]} Re8 {[%emt 0:03:03]} (16... Rd8 $16 {was called for.} 17. Rxc6 Rxd6 18. Rxc8+ (18. Rxd6 Qc7 $16) 18... Rd8 19. Rxd8+ Qxd8) 17. Rxc6 {[%emt 0:04:29]} Bb7 {[%emt 0:00:46]} 18. Rc2 {[%emt 0:07:52]} Ne4 {[%emt 0:01:58]} 19. Bc7 {[%emt 0:01:09]} Qb4 {[%emt 0:00:43]} 20. e3 {[%emt 0:00:47]} h5 {[%emt 0:06:02]} 21. f3 {[%emt 0:00:37]} Nd6 {[%emt 0:02:05]} 22. Nc3 {[%emt 0:03:36]} Nf5 {[%emt 0:01:04]} 23. Nxb5 {[%emt 0:10:18]} Nxe3 {[%emt 0:00:22]} 24. Qe2 {[%emt 0:05:39]} Nxc2 $15 {[%emt 0:01:00]} 25. Qxc2 {[%emt 0:18:07]} Qxb5 {[%emt 0:01:00]} 26. Qd1 Qb4 1/2-1/2